Workbook

Sheet Cuota Máxima 30-365
B2: Simulador de cuota máxima - Decreto 988/21
B3: SEPTIEMBRE 2024
B5: Días desde el desembolso a la 1º cuota | C5: 45
B6: Monto del préstamo | C6: 10000
B7: Cantidad de cuotas | C7: 1
B8: Gastos a cargo del deudor en el momento inicial | C8: 0
B9: CFTEA Máximo | C9: 0.75
B11: Monto del préstamo inicialmente disponible para el deudor | C11: =+C6-C8 -> 10000
B12: Cuota Máxima (*) | C12: =+C11/C17 -> 10714.29488
B14: TEM | C14: =+C15/(365/30) -> 0.0470700323
B15: TNA Límite del mes | C15: =+((1+C9)^(30/365)-1)*(365/30) -> 0.5726853929
B16: ani | C16: =+((1+C14)^C7-1)/(C14*(1+C14)^C7) -> 0.955045956
B17: ani difereido | C17: =+C16*1/(1+C14)^C19 -> 0.9333325346
B19: diferimiento | C19: =+(C5-30)/30 -> 0.5
B21: TNA máxima a incluir en el préstamo | C21: 0.8851311669
B22: TEM máxima a incluir en el préstamo | C22: =+C21/(12.1666666666667) -> 0.07275050687
B24: ani objetivo | C24: =+C6/C12 -> 0.9333325346
B25: ani resultante | C25: =+(((1+C22)^C7-1)/(C22*(1+C22)^C7))*1/(1+C22)^C19 -> 0.9000194758
B26: diferencia | C26: =+C24-C25 -> 0.03331305876
B28: (*) Se considera para el cálculo que el pago de la primera cuota se efectúa a los 45 días
B29: No se consideran para el cálculo impuestos nacionales, provinciales y municipales a
B30: excepción del IVA en los casos que corresponda

Sheet Resumen (hidden)
B3: Diferencias entre CFT que efectivamente van a tener las mutuales y el límite de CFTEA publicado
B5: Plazos de financiación | C5: Diferencias Promedio 30/365 | D5: Diferencias Promedio 30/360
B6: 12 | C6: =+' 12 meses diferencias en CFT'!E47 -> 0.07551405722 | D6: =+'[1] 12 meses diferencias en CFT'!$E$47 -> -0.002091452535
B7: 24 | C7: =+' 24 meses diferencias en CFT'!E47 -> 0.03628414367 | D7: =+'[1] 24 meses diferencias en CFT'!$E$47 -> -0.001968444443
B8: 36 | C8: =+' 36 meses diferencias en CF '!E47 -> 0.02363791758 | D8: =+'[1] 36 meses diferencias en CF '!$E$47 -> -0.001683450794
B9: 48 | C9: =+' 48 meses diferencias en CF '!E47 -> 0.01775478616 | D9: =+'[1] 48 meses diferencias en CF '!$E$47 -> -0.00150386796
B10: 60 | C10: =+' 60 meses diferencias en CF '!E47 -> 0.01455260808 | D10: =+'[1] 60 meses diferencias en CF '!$E$47 -> -0.001427957471
B13: Diferencia en cuota 30/365 y 30/360 por cada $100.000 (con costos iniciales de 10.000 pagados por el deudor y dos meses para el cobro primera cuota)
B15: Plazos de financiación | C15: Diferencias Promedio 30/365 | D15: Diferencias Promedio 30/360 | E15: Diferencia en Cuota
B16: 12 | C16: =+' 12 meses diferencias en CFT'!C15 -> 10429.52627 | D16: =+'[1] 12 meses diferencias en CFT'!$C$15 -> 10739.61286 | E16: =+C16-D16 -> -310.0865859
B17: 24 | C17: =+' 24 meses diferencias en CFT'!C15 -> 6709.692826 | D17: =+'[1] 24 meses diferencias en CFT'!$C$15 -> 6929.347884 | E17: =+C17-D17 -> -219.6550587
B18: 36 | C18: =+' 36 meses diferencias en CF '!C15 -> 5601.99248 | D18: =+'[1] 36 meses diferencias en CF '!$C$15 -> 5798.193092 | E18: -196.2006117
B19: 48 | C19: =+' 48 meses diferencias en CF '!C15 -> 5132.261419 | D19: =+'[1] 48 meses diferencias en CF '!$C$15 -> 5320.604984 | E19: -188.3435649
B20: 60 | C20: =+' 60 meses diferencias en CF '!C15 -> 4904.278284 | D20: =+'[1] 60 meses diferencias en CF '!$C$15 -> 5090.064637 | E20: -185.7863531

Sheet Simulador de TNA máxima 30-365 (hidden)
B5: Simulador de TNA máxima que puede incluir la Mutual en los préstamos
B7: A los cuntos días se cobra 1º cuota | C7: =+'Cuota Máxima 30-365'!C5 -> 45
B8: Monto del préstamo | C8: 15000
B9: Monto del préstamo inicalmente disponible para el deudor | C9: =+C8-C25 -> 15000
B10: Cuota | C10: =+C9/C14 -> 1738.254379
B11: TEM | C11: =+C12/(365/30) -> 0.05038439712
B12: TNA Límite del mes | C12: =+((1+F15)^(30/365)-1)*(365/30) -> 0.613010165
B13: ani | C13: =+((1+C11)^C15-1)/(C11*(1+C11)^C15) -> 8.84406769
B14: ani difereido | C14: =+C13*1/(1+C11)^C16 -> 8.629346879
B15: cantidad de cuotas | C15: 12 | E15: CFTEA | F15: 0.8186
B16: diferimiento | C16: =+(C7-30)/30 -> 0.5
B18: TNA máxima a incluir en el préstamo | C18: =+C19*365/30 -> 0.6130101659
B19: TEM máxima a incluir en el préstamo | C19: 0.0503843972
B21: ani objetivo | C21: =+C8/C10 -> 8.629346879
B22: ani resultante | C22: =+((((1+C19)^C15-1)/(C19*(1+C19)^C15)))*1/(1+C19)^C16 -> 8.629346875
B23: diferencia | C23: =+C21-C22 -> 4.282576072e-09
B25: Gastos a cargo del deudor en el momento inicial | C25: 0

Sheet 12 meses diferencias en CFT (hidden)
B5: Simulador de cuota máxima que puede incluir la Mutual en los préstamos
B7: A los cuntos días se cobra 1º cuota | C7: =+'Simulador de TNA máxima 30-365'!C7 -> 45
B8: Monto del préstamo | C8: 100000
B9: cantidad de cuotas | C9: 12
B10: Gastos a cargo del deudor en el momento inicial | C10: 10000
B11: CFTEA | C11: 0.8186
B14: Monto del préstamo inicalmente disponible para el deudor | C14: =+C8-C10 -> 90000
B15: Cuota | C15: =+C14/C22 -> 10429.52627
B19: TEM | C19: =+C20/(365/30) -> 0.05038439712
B20: TNA Límite del mes | C20: =+((1+C11)^(30/365)-1)*(365/30) -> 0.613010165
B21: ani | C21: =+((1+C19)^C9-1)/(C19*(1+C19)^C9) -> 8.84406769
B22: ani difereido | C22: =+C21*1/(1+C19)^C24 -> 8.629346879
B24: diferimiento | C24: =+(C7-30)/30 -> 0.5
B26: TNA máxima a incluir en el préstamo | C26: =+C27*365/30 -> 0.6754276504
B27: TEM máxima a incluir en el préstamo | C27: 0.0555146014
B29: ani objetivo | C29: =+C8/C15 -> 9.588163199
B30: ani resultante | C30: =+(((1+C27)^C9-1)/(C27*(1+C27)^C9)) -> 8.593909547
B31: diferencia | C31: =+C29-C30 -> 0.9942536518
C40: CFT | D40: =+XIRR(C45:C57,B45:B57) -> 0.9020128131
C41: Diferencia | D41: =+D40-C11 -> 0.08341281309
H43: Fecha inicial
B44: Fechas | C44: Flujo | G44: =+D41 -> 0.08341281309 | H44: 2019-01-01 | I44: =+EDATE(H44,1) -> 2019-02-01 | J44: =+EDATE(I44,1) -> 2019-03-01 | K44: 2019-04-01 | L44: 2019-05-01 | M44: 2019-06-01 | N44: 2019-07-01 | O44: =+EDATE(N44,1) -> 2019-08-01 | P44: 2019-09-01 | Q44: =+EDATE(P44,1) -> 2019-10-01 | R44: 2019-11-01 | S44: 2019-12-01
A45: 0 | B45: 2019-01-01 | C45: =+C14 -> 90000 | F45: CFT límite | G45: 0.9 | H45: 0.09456027746 | I45: 0.0998057723 | J45: 0.08020013571 | K45: 0.08399084806 | L45: 0.07993460894 | M45: 0.08370674849 | N45: 0.07963722944 | O45: 0.08338853121 | P45: 0.08739279509 | Q45: 0.08350845575 | R45: 0.08752115965 | S45: 0.08364297152
A46: 1 | B46: =+EDATE(B45,C7/30) -> 2019-02-01 | C46: =+C15*-1 -> -10429.52627 | G46: 0.85 | H46: 0.08765696287 | I46: 0.0924880147 | J46: 0.07433525324 | K46: 0.07784787416 | L46: 0.07409855127 | M46: 0.07759524584 | N46: 0.07383469343 | O46: 0.07731362581 | P46: 0.08101774454 | Q46: 0.07742108107 | R46: 0.08113247156 | S46: 0.07754102945
A47: 2 | B47: =+EDATE(B46,1) -> 2019-03-01 | C47: =+C46 -> -10429.52627 | E47: =+AVERAGE(H47:S47) -> 0.07551405722 | G47: 0.8186 | H47: 0.08341281309 | I47: 0.08799085512 | J47: 0.07072999372 | K47: 0.0740717639 | L47: 0.07051055326 | M47: 0.0738379468 | N47: 0.07026669874 | O47: 0.07357807055 | P47: 0.07709810629 | Q47: 0.07367801561 | R47: 0.07720463171 | S47: 0.07378923788
A48: 3 | B48: 2019-04-01 | C48: =+C47 -> -10429.52627 | G48: 0.75 | H48: 0.0743883729 | I48: 0.0784332633 | J48: 0.06306542158 | K48: 0.06604427099 | L48: 0.06288143396 | M48: 0.06584893465 | N48: 0.06267837286 | O48: 0.06563333273 | P48: 0.06876302958 | Q48: 0.06571773291 | R48: 0.06885265112 | S48: 0.06581100225
A49: 4 | B49: 2019-05-01 | C49: -10429.52627 | G49: 0.7 | H49: 0.06802805662 | I49: 0.0717012763 | J49: 0.0576646924 | K49: 0.06038800478 | L49: 0.05750459433 | M49: 0.06021851301 | N49: 0.05732880831 | O49: 0.06003235579 | P49: 0.06288794279 | Q49: 0.06010619402 | R49: 0.06296614408 | S49: 0.0601873517
A50: 5 | B50: 2019-06-01 | C50: -10429.52627 | G50: 0.65 | H50: 0.06185384989 | I50: 0.06516977549 | J50: 0.0524230361 | K50: 0.05489851236 | L50: 0.05228515863 | M50: 0.05475295782 | N50: 0.05213457346 | O50: 0.05459393263 | P50: 0.05718427896 | Q50: 0.05465785265 | R50: 0.05725179911 | S50: 0.05472778082
A51: 6 | B51: 2019-07-01 | C51: -10429.52627 | G51: 0.6 | H51: 0.05586854815 | I51: 0.05884158015 | J51: 0.04734278321 | K51: 0.04957818389 | L51: 0.04722546935 | M51: 0.04945469499 | N51: 0.04709803462 | O51: 0.04932052493 | P51: 0.05165458322 | Q51: 0.04937521815 | R51: 0.05171217322 | S51: 0.04943470359
A52: 7 | B52: 2019-08-01 | C52: -10429.52627 | G52: 0.55 | H52: 0.05007501245 | I52: 0.05271959901 | J52: 0.04242637753 | K52: 0.04442958236 | L52: 0.04232797027 | M52: 0.04432628751 | N52: 0.04222165942 | O52: 0.04421469569 | P52: 0.04630152583 | Q52: 0.04426084161 | R52: 0.04634997249 | S52: 0.04431074262
A53: 8 | B53: 2019-09-01 | C53: -10429.52627 | G53: 0.5 | H53: 0.04447630048 | I53: 0.04680692554 | J53: 0.03767638803 | K53: 0.03945533633 | L53: 0.0375952065 | M53: 0.03937038779 | N53: 0.03750801682 | O53: 0.03927915692 | P53: 0.04112792611 | Q53: 0.03931743503 | R53: 0.04116799235 | S53: 0.03935859799
A54: 9 | B54: 2019-10-01 | C54: -10429.52627 | G54: 0.45 | H54: 0.03907558322 | I54: 0.0411067903 | J54: 0.03309548497 | K54: 0.03465824723 | L54: 0.03302987218 | M54: 0.03458980918 | N54: 0.0329598248 | O54: 0.03451673388 | P54: 0.03613672853 | Q54: 0.03454787135 | R54: 0.03616920114 | S54: 0.03458113074
A55: 10 | B55: 2019-11-01 | C55: -10429.52627 | G55: 0.4 | H55: 0.03387621045 | I55: 0.03562259078 | J55: 0.02868651748 | K55: 0.03004125953 | L55: 0.02863479257 | M55: 0.02998748422 | N55: 0.02857992053 | O55: 0.02993043065 | P55: 0.03133103251 | Q55: 0.02995511889 | R55: 0.03135669827 | S55: 0.02998133302
A56: 11 | B56: 2019-12-01 | C56: -10429.52627 | G56: 0.35 | H56: 0.02888171077 | I56: 0.03035791516 | J56: 0.02445244193 | K56: 0.0256074369 | L56: 0.02441294789 | M56: 0.02556652427 | N56: 0.02437132001 | O56: 0.02552338243 | P56: 0.02671411633 | Q56: 0.02554234862 | R56: 0.02673377395 | S56: 0.02556235194
A57: 12 | B57: 2020-01-01 | C57: -10429.52627 | G57: 0.3 | H57: 0.0240958035 | I57: 0.02531654239 | J57: 0.02039639354 | K57: 0.02136005759 | L57: 0.02036747336 | M57: 0.02133019567 | N57: 0.02033718228 | O57: 0.02129892707 | P57: 0.02228943706 | Q57: 0.0213128984 | R57: 0.02230386138 | S57: 0.02132754922
G58: 0.25 | H58: 0.01952243447 | I58: 0.02050246596 | J58: 0.01652171016 | K58: 0.01730257869 | L58: 0.01650169492 | M58: 0.01728197932 | N58: 0.01648088098 | O58: 0.01726056933 | P58: 0.01806063056 | Q58: 0.01727029681 | R58: 0.01807065606 | S58: 0.0172804296
G59: 0.2 | H59: 0.01516579986 | I59: 0.01591992974 | J59: 0.01283190846 | K59: 0.01343862414 | L59: 0.01281914115 | M59: 0.01342554688 | N59: 0.01280596852 | O59: 0.01341205239 | P59: 0.01403160691 | Q59: 0.01341829896 | R59: 0.01403800845 | S59: 0.01342474818
G60: 0.15 | H60: 0.01103032231 | I60: 0.01157343984 | J60: 0.009330707788 | K60: 0.009772115946 | L60: 0.009323567152 | M60: 0.009764820337 | N60: 0.009316235781 | O60: 0.009757345915 | P60: 0.01020646691 | Q60: 0.009760862589 | R60: 0.01021006703 | S60: 0.00976447463
G61: 0.1 | H61: 0.007120758295 | I61: 0.0074678123 | J61: 0.006022113562 | K61: 0.006307166815 | L61: 0.006018942595 | M61: 0.006303948164 | N61: 0.006015735865 | O61: 0.006300681829 | P61: 0.006589621305 | Q61: 0.006302255392 | R61: 0.00659121871 | S61: 0.006303852797

Sheet 24 meses diferencias en CFT (hidden)
B5: Simulador de cuota máxima que puede incluir la Mutual en los préstamos
B7: A los cuntos días se cobra 1º cuota | C7: =+' 12 meses diferencias en CFT'!C7 -> 45
B8: Monto del préstamo | C8: 100000
B9: cantidad de cuotas | C9: 24
B10: Gastos a cargo del deudor en el momento inicial | C10: 10000
B11: CFTEA | C11: 0.8186
B14: Monto del préstamo inicalmente disponible para el deudor | C14: =+C8-C10 -> 90000
B15: Cuota | C15: =+C14/C22 -> 6709.692826
B19: TEM | C19: =+C20/(365/30) -> 0.05038439712
B20: TNA Límite del mes | C20: =+((1+C11)^(30/365)-1)*(365/30) -> 0.613010165
B21: ani | C21: =+((1+C19)^C9-1)/(C19*(1+C19)^C9) -> 13.74719212
B22: ani difereido | C22: =+C21*1/(1+C19)^C24 -> 13.41343074
B24: diferimiento | C24: =+(C7-30)/30 -> 0.5
B26: TNA máxima a incluir en el préstamo | C26: =+C27*365/30 -> 0.6754276504
B27: TEM máxima a incluir en el préstamo | C27: 0.0555146014
B29: ani objetivo | C29: =+C8/C15 -> 14.90381193
B30: ani resultante | C30: =+(((1+C27)^C9-1)/(C27*(1+C27)^C9)) -> 13.08777259
B31: diferencia | C31: =+C29-C30 -> 1.816039342
C40: CFT | D40: =+XIRR(C45:C69,B45:B69) -> 0.8589222312
C41: Diferencia | D41: =+D40-C11 -> 0.0403222312
H43: Fecha inicial
B44: Fechas | C44: Flujo | G44: =+D41 -> 0.0403222312 | H44: 2019-01-01 | I44: =+EDATE(H44,1) -> 2019-02-01 | J44: =+EDATE(I44,1) -> 2019-03-01 | K44: 2019-04-01 | L44: 2019-05-01 | M44: 2019-06-01 | N44: 2019-07-01 | O44: =+EDATE(N44,1) -> 2019-08-01 | P44: 2019-09-01 | Q44: =+EDATE(P44,1) -> 2019-10-01 | R44: 2019-11-01 | S44: 2019-12-01
A45: 0 | B45: 2019-01-01 | C45: =+C14 -> 90000 | F45: CFT límite | G45: 0.9 | H45: 0.04634083509 | I45: 0.04904795885 | J45: 0.03830291033 | K45: 0.04050403833 | L45: 0.03834811449 | M45: 0.04055155516 | N45: 0.03839856386 | O45: 0.04060462713 | P45: 0.04294809103 | Q45: 0.04091972113 | R45: 0.04328283072 | S45: 0.04127196074
A46: 1 | B46: =+EDATE(B45,C7/30) -> 2019-02-01 | C46: =+C15*-1 -> -6709.692826 | G46: 0.85 | H46: 0.04260138273 | I46: 0.045081532 | J46: 0.03518205881 | K46: 0.03721464872 | L46: 0.03523393869 | M46: 0.03726917505 | N46: 0.03529158831 | O46: 0.03732982874 | P46: 0.03948973417 | Q46: 0.0376224637 | R46: 0.03979984522 | S46: 0.03794804811
A47: 2 | B47: =+EDATE(B46,1) -> 2019-03-01 | C47: =+C46 -> -6709.692826 | E47: =+AVERAGE(H47:S47) -> 0.03628414367 | G47: 0.8186 | H47: 0.0403222312 | I47: 0.04266462221 | J47: 0.03328134909 | K47: 0.03521084681 | L47: 0.03333682909 | M47: 0.03526916399 | N47: 0.03339831724 | O47: 0.03533377542 | P47: 0.03738160028 | Q47: 0.03561258211 | R47: 0.03767657175 | S47: 0.03592183485
A48: 3 | B48: 2019-04-01 | C48: =+C47 -> -6709.692826 | G48: 0.75 | H48: 0.03552924395 | I48: 0.03758348227 | J48: 0.02928811312 | K48: 0.03099981546 | L48: 0.02934991121 | M48: 0.03106464148 | N48: 0.02941795588 | O48: 0.03113600016 | P48: 0.03294743299 | Q48: 0.0313852191 | R48: 0.03321019411 | S48: 0.03165982962
A49: 4 | B49: 2019-05-01 | C49: -6709.692826 | G49: 0.7 | H49: 0.03219732046 | I49: 0.03405250311 | J49: 0.02651561499 | K49: 0.02807494402 | L49: 0.02658065557 | M49: 0.02814306021 | N49: 0.02665189505 | O49: 0.02821768522 | P49: 0.02986420393 | Q49: 0.02844594717 | R49: 0.0301042676 | S49: 0.02869623899
A50: 5 | B50: 2019-06-01 | C50: -6709.692826 | G50: 0.65 | H50: 0.02900198102 | I50: 0.03066727519 | J50: 0.0238597095 | K50: 0.02527210116 | L50: 0.02392688394 | M50: 0.02534230351 | N50: 0.02400009036 | O50: 0.02541881204 | P50: 0.02690666318 | Q50: 0.02562670112 | R50: 0.02712469697 | S50: 0.02585344911
A51: 6 | B51: 2019-07-01 | C51: -6709.692826 | G51: 0.6 | H51: 0.02594353557 | I51: 0.02742808461 | J51: 0.02132067084 | K51: 0.02259153724 | L51: 0.02138885856 | M51: 0.02266263366 | N51: 0.02146278024 | O51: 0.02273972631 | P51: 0.02407515645 | Q51: 0.02292776704 | R51: 0.02427182794 | S51: 0.02313178182
A52: 7 | B52: 2019-08-01 | C52: -6709.692826 | G52: 0.55 | H52: 0.02302231193 | I52: 0.02433516383 | J52: 0.01889868379 | K52: 0.02003344893 | L52: 0.01896677613 | M52: 0.02010428309 | N52: 0.01904019713 | O52: 0.02018066049 | P52: 0.02136995196 | Q52: 0.020349437 | R52: 0.02154596448 | S52: 0.02053154111
A53: 8 | B53: 2019-09-01 | C53: -6709.692826 | G53: 0.5 | H53: 0.02023857236 | I53: 0.02138872743 | J53: 0.0165939033 | K53: 0.01759801507 | L53: 0.01666081548 | M53: 0.01766744256 | N53: 0.01673255563 | O53: 0.01774188876 | P53: 0.0187913239 | Q53: 0.01789198518 | R53: 0.01894738078 | S53: 0.01805298924
A54: 9 | B54: 2019-10-01 | C54: -6709.692826 | G54: 0.45 | H54: 0.01759260297 | I54: 0.01858896613 | J54: 0.0144064486 | K54: 0.01528536677 | L54: 0.01447111964 | M54: 0.01535227895 | N54: 0.01454005837 | O54: 0.01542361379 | P54: 0.01633948684 | Q54: 0.01555562615 | R54: 0.01647632718 | S54: 0.01569641232
A55: 10 | B55: 2019-11-01 | C55: -6709.692826 | G55: 0.4 | H55: 0.01508459449 | I55: 0.01593601108 | J55: 0.01233645082 | K55: 0.01309562325 | L55: 0.01239781976 | M55: 0.01315894723 | N55: 0.0124628365 | O55: 0.01322603822 | P55: 0.01401465535 | Q55: 0.0133405745 | R55: 0.01413301826 | S55: 0.01346200109
A56: 11 | B56: 2019-12-01 | C56: -6709.692826 | G56: 0.35 | H56: 0.01271474957 | I56: 0.01342998147 | J56: 0.01038393378 | K56: 0.01102885604 | L56: 0.01044096351 | M56: 0.01108751893 | N56: 0.01050100923 | O56: 0.01114929318 | P56: 0.01181699634 | Q56: 0.01124702096 | R56: 0.01191764474 | S56: 0.0113499701
A57: 12 | B57: 2020-01-01 | C57: -6709.692826 | G57: 0.3 | H57: 0.01048319936 | I57: 0.011070925 | J57: 0.008548921347 | K57: 0.009085077047 | L57: 0.008600598574 | M57: 0.009138077497 | N57: 0.008654671907 | O57: 0.009193533659 | P57: 0.009746640921 | Q57: 0.009275096655 | R57: 0.009830373526 | S57: 0.009360462427
A58: 13 | B58: 2020-02-01 | C58: -6709.692826 | G58: 0.25 | H58: 0.008390063047 | I58: 0.00885887742 | J58: 0.006831377745 | K58: 0.007264274359 | L58: 0.006876724958 | M58: 0.007310634851 | N58: 0.006923848391 | O58: 0.007358795404 | P58: 0.007803708315 | Q58: 0.007424896955 | R58: 0.007871323824 | S58: 0.00749360919
A59: 14 | B59: 2020-03-01 | C59: -6709.692826 | G59: 0.2 | H59: 0.006435364485 | I59: 0.006793779135 | J59: 0.005231195688 | K59: 0.005566376448 | L59: 0.005269247293 | M59: 0.005605143309 | N59: 0.005308526754 | O59: 0.005645149946 | P59: 0.005988222361 | Q59: 0.005696493387 | R59: 0.006040543318 | S59: 0.005749481916
A60: 15 | B60: 2020-04-01 | C60: -6709.692826 | G60: 0.15 | H60: 0.004619115591 | I60: 0.004875534773 | J60: 0.003748232126 | K60: 0.003991240263 | L60: 0.003778070211 | M60: 0.004021519423 | N60: 0.003808635473 | O60: 0.00405253768 | P60: 0.004300183058 | Q60: 0.004089862108 | R60: 0.004338079691 | S60: 0.004128116369
A61: 16 | B61: 2020-05-01 | C61: -6709.692826 | G61: 0.1 | H61: 0.00294123292 | I61: 0.003104001284 | J61: 0.002382260561 | K61: 0.002538663149 | L61: 0.002402991056 | M61: 0.002559608221 | N61: 0.002424055338 | O61: 0.002580922842 | P61: 0.002739566565 | Q61: 0.002604991198 | R61: 0.002763909101 | S61: 0.002629476786
A62: 17 | B62: 2020-06-01 | C62: -6709.692826
A63: 18 | B63: 2020-07-01 | C63: -6709.692826
A64: 19 | B64: 2020-08-01 | C64: -6709.692826
A65: 20 | B65: 2020-09-01 | C65: -6709.692826
A66: 21 | B66: 2020-10-01 | C66: -6709.692826
A67: 22 | B67: 2020-11-01 | C67: -6709.692826
A68: 23 | B68: 2020-12-01 | C68: -6709.692826
A69: 24 | B69: 2021-01-01 | C69: -6709.692826

Sheet 36 meses diferencias en CF (hidden)
B5: Simulador de cuota máxima que puede incluir la Mutual en los préstamos
B7: A los cuntos días se cobra 1º cuota | C7: =+' 24 meses diferencias en CFT'!C7 -> 45
B8: Monto del préstamo | C8: 100000
B9: cantidad de cuotas | C9: 36
B10: Gastos a cargo del deudor en el momento inicial | C10: 10000
B11: CFTEA | C11: 0.8186
B14: Monto del préstamo inicalmente disponible para el deudor | C14: =+C8-C10 -> 90000
B15: Cuota | C15: =+C14/C22 -> 5601.99248
B19: TEM | C19: =+C20/(365/30) -> 0.05038439712
B20: TNA Límite del mes | C20: =+((1+C11)^(30/365)-1)*(365/30) -> 0.613010165
B21: ani | C21: =+((1+C19)^C9-1)/(C19*(1+C19)^C9) -> 16.4654695
B22: ani difereido | C22: =+C21*1/(1+C19)^C24 -> 16.06571239
B24: diferimiento | C24: =+(C7-30)/30 -> 0.5
B26: TNA máxima a incluir en el préstamo | C26: =+C27*365/30 -> 0.6754276504
B27: TEM máxima a incluir en el préstamo | C27: 0.0555146014
B29: ani objetivo | C29: =+C8/C15 -> 17.85079154
B30: ani resultante | C30: =+(((1+C27)^C9-1)/(C27*(1+C27)^C9)) -> 15.43766992
B31: diferencia | C31: =+C29-C30 -> 2.413121628
C40: CFT | D40: =+XIRR(C45:C81,B45:B81) -> 0.8451351285
C41: Diferencia | D41: =+D40-C11 -> 0.0265351285
H43: Fecha inicial
B44: Fechas | C44: Flujo | G44: =+D41 -> 0.0265351285 | H44: 2019-01-01 | I44: =+EDATE(H44,1) -> 2019-02-01 | J44: =+EDATE(I44,1) -> 2019-03-01 | K44: 2019-04-01 | L44: 2019-05-01 | M44: 2019-06-01 | N44: 2019-07-01 | O44: =+EDATE(N44,1) -> 2019-08-01 | P44: 2019-09-01 | Q44: =+EDATE(P44,1) -> 2019-10-01 | R44: 2019-11-01 | S44: 2019-12-01
A45: 0 | B45: 2019-01-01 | C45: =+C14 -> 90000 | F45: CFT límite | G45: 0.9 | H45: 0.0310431838 | I45: 0.03309012651 | J45: 0.02503014803 | K45: 0.02670964003 | L45: 0.02510794401 | M45: 0.02679182291 | N45: 0.02519475222 | O45: 0.0268835187 | P45: 0.02867463827 | Q45: 0.02717627287 | R45: 0.0289850831 | S45: 0.02750309706
A46: 1 | B46: =+EDATE(B45,C7/30) -> 2019-02-01 | C46: =+C15*-1 -> -5601.99248 | G46: 0.85 | H46: 0.02823213339 | I46: 0.0300981164 | J46: 0.02271403074 | K46: 0.02425717115 | L46: 0.02279456854 | M46: 0.02434207201 | N46: 0.02288397551 | O46: 0.02443634272 | P46: 0.02607883215 | Q46: 0.02470780611 | R46: 0.02636600733 | S46: 0.0250094533
A47: 2 | B47: =+EDATE(B46,1) -> 2019-03-01 | C47: =+C46 -> -5601.99248 | E47: =+AVERAGE(H47:S47) -> 0.02363791758 | G47: 0.8186 | H47: 0.0265351285 | I47: 0.02829184427 | J47: 0.02131798162 | K47: 0.02277815237 | L47: 0.02139973536 | M47: 0.02286422148 | N47: 0.02149021521 | O47: 0.02295951738 | P47: 0.02451169386 | Q47: 0.02321784391 | R47: 0.02478458776 | S47: 0.02350408926
A48: 3 | B48: 2019-04-01 | C48: =+C47 -> -5601.99248 | G48: 0.75 | H48: 0.02301017046 | I48: 0.02453988791 | J48: 0.01842416525 | K48: 0.01971021891 | L48: 0.01850723028 | M48: 0.01979743242 | N48: 0.01859856844 | O48: 0.01989337206 | P48: 0.02125643492 | Q48: 0.02012375593 | R48: 0.0214989543 | S48: 0.02037733793
A49: 4 | B49: 2019-05-01 | C49: -5601.99248 | G49: 0.7 | H49: 0.02059794664 | I49: 0.02197214365 | J49: 0.01644912958 | K49: 0.01761442423 | L49: 0.01653205156 | M49: 0.01770130396 | N49: 0.01662279367 | O49: 0.01779638529 | P49: 0.01902865171 | Q49: 0.01800705194 | R49: 0.01924983263 | S49: 0.0182377696
A50: 5 | B50: 2019-06-01 | C50: -5601.99248 | G50: 0.65 | H50: 0.01831714511 | I50: 0.0195440948 | J50: 0.01458635926 | K50: 0.01563606858 | L50: 0.01466824412 | M50: 0.01572164893 | N50: 0.01475740075 | O50: 0.01581484675 | P50: 0.01692218184 | Q50: 0.01600633264 | R50: 0.01712269187 | S50: 0.01621497273
A51: 6 | B51: 2019-07-01 | C51: -5601.99248 | G51: 0.6 | H51: 0.01616687179 | I51: 0.0172546804 | J51: 0.01283499599 | K51: 0.01377423406 | L51: 0.01291494966 | M51: 0.01385759711 | N51: 0.01300156713 | O51: 0.01394789815 | P51: 0.01493615508 | Q51: 0.01412077546 | R51: 0.01511668563 | S51: 0.01430814862
A52: 7 | B52: 2019-08-01 | C52: -5601.99248 | G52: 0.55 | H52: 0.01414604783 | I52: 0.0151027143 | J52: 0.01119403243 | K52: 0.01202790141 | L52: 0.01127120852 | M52: 0.0121081531 | N52: 0.011354357 | O52: 0.01219462752 | P52: 0.01306962371 | Q52: 0.01234946847 | R52: 0.01323086619 | S52: 0.01251638532
A53: 8 | B53: 2019-09-01 | C53: -5601.99248 | G53: 0.5 | H53: 0.01225348115 | I53: 0.01308687329 | J53: 0.009662348032 | K53: 0.01039591432 | L53: 0.009735924006 | M53: 0.01047220826 | N53: 0.009814733267 | O53: 0.01055395007 | P53: 0.01132146716 | Q53: 0.01069136262 | R53: 0.01146413684 | S53: 0.01083865762
A54: 9 | B54: 2019-10-01 | C54: -5601.99248 | G54: 0.45 | H54: 0.01048782468 | I54: 0.01120566726 | J54: 0.008238691092 | K54: 0.008876985312 | L54: 0.008307868242 | M54: 0.008948510885 | N54: 0.008381539583 | O54: 0.009024709463 | P54: 0.009690481424 | Q54: 0.00914530158 | R54: 0.009815317392 | S54: 0.009273797274
A55: 10 | B55: 2019-11-01 | C55: -5601.99248 | G55: 0.4 | H55: 0.008847600222 | I55: 0.009457474947 | J55: 0.006921678782 | K55: 0.007469683886 | L55: 0.006985682249 | M55: 0.007535678148 | N55: 0.00705345273 | O55: 0.007605546713 | P55: 0.00817528367 | Q55: 0.007709950209 | R55: 0.008283013105 | S55: 0.007820528746
A56: 11 | B56: 2019-12-01 | C56: -5601.99248 | G56: 0.35 | H56: 0.007331138849 | I56: 0.00784047246 | J56: 0.00570974946 | K56: 0.006172412634 | L56: 0.005767852068 | M56: 0.006232148409 | N56: 0.005829006433 | O56: 0.006295007467 | P56: 0.0067743361 | Q56: 0.006383854151 | R56: 0.006865733862 | S56: 0.00647739768
A57: 12 | B57: 2020-01-01 | C57: -5601.99248 | G57: 0.3 | H57: 0.005936580896 | I57: 0.00635265708 | J57: 0.004601186514 | K57: 0.004983431101 | L57: 0.004652708769 | M57: 0.005036216974 | N57: 0.004706579447 | O57: 0.005091422796 | P57: 0.005485957861 | Q57: 0.00516539216 | R57: 0.005561798811 | S57: 0.00524277091
A58: 13 | B58: 2020-02-01 | C58: -5601.99248 | G58: 0.25 | H58: 0.004661911726 | I58: 0.004991835356 | J58: 0.003594094515 | K58: 0.003900772333 | L58: 0.003638380766 | M58: 0.003946000338 | N58: 0.003684383631 | O58: 0.003992968798 | P58: 0.004308253527 | Q58: 0.004052764177 | R58: 0.004369336367 | S58: 0.004114884138
A59: 14 | B59: 2020-03-01 | C59: -5601.99248 | G59: 0.2 | H59: 0.003504866362 | I59: 0.00375559926 | J59: 0.0026863873 | K59: 0.002922302485 | L59: 0.00272282958 | M59: 0.002959400415 | N59: 0.00276042819 | O59: 0.002997654676 | P59: 0.003239160776 | Q59: 0.003043967485 | R59: 0.00328630805 | S59: 0.00309175849
A60: 15 | B60: 2020-04-01 | C60: -5601.99248 | G60: 0.15 | H60: 0.002462989092 | I60: 0.002641314268 | J60: 0.001875764132 | K60: 0.002045696974 | L60: 0.001903802156 | M60: 0.002074128389 | N60: 0.001932531595 | O60: 0.002103251219 | P60: 0.002276402712 | Q60: 0.002136820555 | R60: 0.002310448885 | S60: 0.002171200514
A61: 16 | B61: 2020-05-01 | C61: -5601.99248 | G61: 0.1 | H61: 0.001533573866 | I61: 0.001646083593 | J61: 0.001159697771 | K61: 0.001268357038 | L61: 0.001178830862 | M61: 0.001287680864 | N61: 0.001198285818 | O61: 0.001307326555 | P61: 0.00141748786 | Q61: 0.001328903437 | R61: 0.001439291239 | S61: 0.001350849867
A62: 17 | B62: 2020-06-01 | C62: -5601.99248
A63: 18 | B63: 2020-07-01 | C63: -5601.99248
A64: 19 | B64: 2020-08-01 | C64: -5601.99248
A65: 20 | B65: 2020-09-01 | C65: -5601.99248
A66: 21 | B66: 2020-10-01 | C66: -5601.99248
A67: 22 | B67: 2020-11-01 | C67: -5601.99248
A68: 23 | B68: 2020-12-01 | C68: -5601.99248
A69: 24 | B69: 2021-01-01 | C69: -5601.99248
A70: 25 | B70: =+EDATE(B69,1) -> 2021-02-01 | C70: =+C69 -> -5601.99248
A71: 26 | B71: 2021-03-01 | C71: -5601.99248
A72: 27 | B72: 2021-04-01 | C72: -5601.99248
A73: 28 | B73: 2021-05-01 | C73: -5601.99248
A74: 29 | B74: 2021-06-01 | C74: -5601.99248
A75: 30 | B75: 2021-07-01 | C75: -5601.99248
A76: 31 | B76: 2021-08-01 | C76: -5601.99248
A77: 32 | B77: 2021-09-01 | C77: -5601.99248
A78: 33 | B78: 2021-10-01 | C78: -5601.99248
A79: 34 | B79: 2021-11-01 | C79: -5601.99248
A80: 35 | B80: 2021-12-01 | C80: -5601.99248
A81: 36 | B81: 2022-01-01 | C81: -5601.99248

Sheet 48 meses diferencias en CF (hidden)
B5: Simulador de cuota máxima que puede incluir la Mutual en los préstamos
B7: A los cuntos días se cobra 1º cuota | C7: =+' 36 meses diferencias en CF '!C7 -> 45
B8: Monto del préstamo | C8: 100000
B9: cantidad de cuotas | C9: 48
B10: Gastos a cargo del deudor en el momento inicial | C10: 10000
B11: CFTEA | C11: 0.8186
B14: Monto del préstamo inicalmente disponible para el deudor | C14: =+C8-C10 -> 90000
B15: Cuota | C15: =+C14/C22 -> 5132.261419
B19: TEM | C19: =+C20/(365/30) -> 0.05038439712
B20: TNA Límite del mes | C20: =+((1+C11)^(30/365)-1)*(365/30) -> 0.613010165
B21: ani | C21: =+((1+C19)^C9-1)/(C19*(1+C19)^C9) -> 17.97247428
B22: ani difereido | C22: =+C21*1/(1+C19)^C24 -> 17.53612933
B24: diferimiento | C24: =+(C7-30)/30 -> 0.5
B26: TNA máxima a incluir en el préstamo | C26: =+C27*365/30 -> 0.6754276504
B27: TEM máxima a incluir en el préstamo | C27: 0.0555146014
B29: ani objetivo | C29: =+C8/C15 -> 19.48458815
B30: ani resultante | C30: =+(((1+C27)^C9-1)/(C27*(1+C27)^C9)) -> 16.66646069
B31: diferencia | C31: =+C29-C30 -> 2.818127457
C40: CFT | D40: =+XIRR(C45:C93,B45:B93) -> 0.8387580037
C41: Diferencia | D41: =+D40-C11 -> 0.02015800371
H43: Fecha inicial
B44: Fechas | C44: Flujo | G44: =+D41 -> 0.02015800371 | H44: 2019-01-01 | I44: =+EDATE(H44,1) -> 2019-02-01 | J44: =+EDATE(I44,1) -> 2019-03-01 | K44: 2019-04-01 | L44: 2019-05-01 | M44: 2019-06-01 | N44: 2019-07-01 | O44: =+EDATE(N44,1) -> 2019-08-01 | P44: 2019-09-01 | Q44: =+EDATE(P44,1) -> 2019-10-01 | R44: 2019-11-01 | S44: 2019-12-01
A45: 0 | B45: 2019-01-01 | C45: =+C14 -> 90000 | F45: CFT límite | G45: 0.9 | H45: 0.02406095266 | I45: 0.02580686808 | J45: 0.01895457506 | K45: 0.02039259672 | L45: 0.01903647184 | M45: 0.02047911882 | N45: 0.01912776232 | O45: 0.02057558298 | P45: 0.0221100688 | Q45: 0.02084447145 | R45: 0.02239500284 | S45: 0.02114447355
A46: 1 | B46: =+EDATE(B45,C7/30) -> 2019-02-01 | C46: =+C15*-1 -> -5132.261419 | G46: 0.85 | H46: 0.02161935568 | I46: 0.02320262194 | J46: 0.01695963144 | K46: 0.01827405691 | L46: 0.01704283953 | M46: 0.01836179495 | N46: 0.01713517904 | O46: 0.0184591651 | P46: 0.01985901594 | Q46: 0.01870771646 | R46: 0.02012175322 | S46: 0.01898373365
A47: 2 | B47: =+EDATE(B46,1) -> 2019-03-01 | C47: =+C46 -> -5132.261419 | E47: =+AVERAGE(H47:S47) -> 0.01775478616 | G47: 0.8186 | H47: 0.02015800371 | I47: 0.02164356604 | J47: 0.01576843157 | K47: 0.01700804129 | L47: 0.01585202112 | M47: 0.01709606543 | N47: 0.01594450369 | O47: 0.01719345942 | P47: 0.01851191416 | Q47: 0.01742949381 | R47: 0.01876106157 | S47: 0.0176908721
A48: 3 | B48: 2019-04-01 | C48: =+C47 -> -5132.261419 | G48: 0.75 | H48: 0.01715699434 | I48: 0.01844083071 | J48: 0.01333011389 | K48: 0.01441370249 | L48: 0.01341332197 | M48: 0.01450103521 | N48: 0.01350477934 | O48: 0.01459707022 | P48: 0.0157461524 | Q48: 0.01480661631 | R48: 0.01596657038 | S48: 0.01503709555
A49: 4 | B49: 2019-05-01 | C49: -5132.261419 | G49: 0.7 | H49: 0.01513377428 | I49: 0.01628049612 | J49: 0.0116933465 | K49: 0.01266957521 | L49: 0.01177526712 | M49: 0.01275538206 | N49: 0.01186491251 | O49: 0.0128492713 | P49: 0.01388212442 | Q49: 0.01304017305 | R49: 0.01408241987 | S49: 0.0132491231
A50: 5 | B50: 2019-06-01 | C50: -5132.261419 | G50: 0.65 | H50: 0.01324722171 | I50: 0.0142650187 | J50: 0.01017341018 | K50: 0.01104760766 | L50: 0.0102532804 | M50: 0.01113106608 | N50: 0.01034021974 | O50: 0.01122190356 | P50: 0.0121445477 | Q50: 0.0113947928 | R50: 0.01232543588 | S50: 0.01158304811
A51: 6 | B51: 2019-07-01 | C51: -5132.261419 | G51: 0.6 | H51: 0.01149559617 | I51: 0.01239250302 | J51: 0.008768755198 | K51: 0.009546202421 | L51: 0.008845812082 | M51: 0.00962651372 | N51: 0.008929234743 | O51: 0.009713464975 | P51: 0.01053186059 | Q51: 0.00986892581 | R51: 0.01069408059 | S51: 0.01003734469
A52: 7 | B52: 2019-08-01 | C52: -5132.261419 | G52: 0.55 | H52: 0.009876924753 | I52: 0.01066079736 | J52: 0.007477587461 | K52: 0.008163493872 | L52: 0.00755110383 | M52: 0.008239907026 | N52: 0.00763027072 | O52: 0.00832220912 | P52: 0.00904224515 | Q52: 0.008460885286 | R52: 0.009186547995 | S52: 0.00861030221
A53: 8 | B53: 2019-09-01 | C53: -5132.261419 | G53: 0.5 | H53: 0.008388990164 | I53: 0.009067481756 | J53: 0.006297904253 | K53: 0.006897419691 | L53: 0.006367200613 | M53: 0.006969243288 | N53: 0.006441408396 | O53: 0.007046180964 | P53: 0.007673662901 | Q53: 0.007168716192 | R53: 0.007800811529 | S53: 0.007300001383
A54: 9 | B54: 2019-10-01 | C54: -5132.261419 | G54: 0.45 | H54: 0.007029300928 | I54: 0.007609897852 | J54: 0.005227464437 | K54: 0.005745655298 | L54: 0.005291897058 | M54: 0.005812245607 | N54: 0.005360502005 | O54: 0.005883175135 | P54: 0.006423848867 | Q54: 0.005990225077 | R54: 0.006534594297 | S54: 0.006104272604
A55: 10 | B55: 2019-11-01 | C55: -5132.261419 | G55: 0.4 | H55: 0.005795091391 | I55: 0.006285065413 | J55: 0.004263752699 | K55: 0.004705613852 | L55: 0.004322725534 | M55: 0.004766398668 | N55: 0.004385155439 | O55: 0.004830735922 | P55: 0.00529025197 | Q55: 0.004922991991 | R55: 0.005385392904 | S55: 0.005020672083
A56: 11 | B56: 2019-12-01 | C56: -5132.261419 | G56: 0.35 | H56: 0.004683297873 | I56: 0.005089706182 | J56: 0.003403991461 | K56: 0.003774470091 | L56: 0.003456968069 | M56: 0.003828889132 | N56: 0.003512698412 | O56: 0.003886145353 | P56: 0.004270046949 | Q56: 0.003964287043 | R56: 0.004350358248 | S56: 0.00404650569
A57: 12 | B57: 2020-01-01 | C57: -5132.261419 | G57: 0.3 | H57: 0.003690522909 | I57: 0.00402020812 | J57: 0.002645140886 | K57: 0.002949041128 | L57: 0.002691620588 | M57: 0.002996641397 | N57: 0.002740198374 | O57: 0.003046387434 | P57: 0.0033600986 | Q57: 0.003111106157 | R57: 0.003426414728 | S57: 0.003178781271
A58: 13 | B58: 2020-02-01 | C58: -5132.261419 | G58: 0.25 | H58: 0.002813059092 | I58: 0.00307264924 | J58: 0.001983839273 | K58: 0.002225893736 | L58: 0.002023357153 | M58: 0.002266234159 | N58: 0.002064400911 | O58: 0.002308124304 | P58: 0.002556985617 | Q58: 0.002360159159 | R58: 0.002610117197 | S58: 0.002414208651
A59: 14 | B59: 2020-03-01 | C59: -5132.261419 | G59: 0.2 | H59: 0.002046829462 | I59: 0.002242702246 | J59: 0.001416403055 | K59: 0.00160124898 | L59: 0.001448577642 | M59: 0.00163397193 | N59: 0.001481753588 | O59: 0.001667732 | P59: 0.001856940985 | Q59: 0.001707810163 | R59: 0.001897722483 | S59: 0.001749163866
A60: 15 | B60: 2020-04-01 | C60: -5132.261419 | G60: 0.15 | H60: 0.001387411356 | I60: 0.001525717974 | J60: 0.0009388267994 | K60: 0.001070982218 | L60: 0.0009633123875 | M60: 0.001095801592 | N60: 0.000988394022 | O60: 0.001121217012 | P60: 0.001255863905 | Q60: 0.001150101423 | R60: 0.001285141706 | S60: 0.001179689169
A61: 16 | B61: 2020-05-01 | C61: -5132.261419 | G61: 0.1 | H61: 0.000829988718 | I61: 0.0009166300297 | J61: 0.000546759367 | K61: 0.0006306231022 | L61: 0.0005632817745 | M61: 0.0006473124027 | N61: 0.0005800783634 | O61: 0.0006642758846 | P61: 0.000749284029 | Q61: 0.0006827414036 | R61: 0.0007679283619 | S61: 0.0007015049458
A62: 17 | B62: 2020-06-01 | C62: -5132.261419
A63: 18 | B63: 2020-07-01 | C63: -5132.261419
A64: 19 | B64: 2020-08-01 | C64: -5132.261419
A65: 20 | B65: 2020-09-01 | C65: -5132.261419
A66: 21 | B66: 2020-10-01 | C66: -5132.261419
A67: 22 | B67: 2020-11-01 | C67: -5132.261419
A68: 23 | B68: 2020-12-01 | C68: -5132.261419
A69: 24 | B69: 2021-01-01 | C69: -5132.261419
A70: 25 | B70: 2021-02-01 | C70: -5132.261419
A71: 26 | B71: 2021-03-01 | C71: -5132.261419
A72: 27 | B72: 2021-04-01 | C72: -5132.261419
A73: 28 | B73: 2021-05-01 | C73: -5132.261419
A74: 29 | B74: 2021-06-01 | C74: -5132.261419
A75: 30 | B75: 2021-07-01 | C75: -5132.261419
A76: 31 | B76: 2021-08-01 | C76: -5132.261419
A77: 32 | B77: 2021-09-01 | C77: -5132.261419
A78: 33 | B78: 2021-10-01 | C78: -5132.261419
A79: 34 | B79: 2021-11-01 | C79: -5132.261419
A80: 35 | B80: 2021-12-01 | C80: -5132.261419
A81: 36 | B81: 2022-01-01 | C81: -5132.261419
A82: 37 | B82: =+EDATE(B81,1) -> 2022-02-01 | C82: =+C81 -> -5132.261419
A83: 38 | B83: 2022-03-01 | C83: -5132.261419
A84: 39 | B84: 2022-04-01 | C84: -5132.261419
A85: 40 | B85: 2022-05-01 | C85: -5132.261419
A86: 41 | B86: 2022-06-01 | C86: -5132.261419
A87: 42 | B87: 2022-07-01 | C87: -5132.261419
A88: 43 | B88: 2022-08-01 | C88: -5132.261419
A89: 44 | B89: 2022-09-01 | C89: -5132.261419
A90: 45 | B90: 2022-10-01 | C90: -5132.261419
A91: 46 | B91: 2022-11-01 | C91: -5132.261419
A92: 47 | B92: 2022-12-01 | C92: -5132.261419
A93: 48 | B93: 2023-01-01 | C93: -5132.261419

Sheet 60 meses diferencias en CF (hidden)
B5: Simulador de cuota máxima que puede incluir la Mutual en los préstamos
B7: A los cuntos días se cobra 1º cuota | C7: =+' 48 meses diferencias en CF '!C7 -> 45
B8: Monto del préstamo | C8: 100000
B9: cantidad de cuotas | C9: 60
B10: Gastos a cargo del deudor en el momento inicial | C10: 10000
B11: CFTEA | C11: 0.8186
B14: Monto del préstamo inicalmente disponible para el deudor | C14: =+C8-C10 -> 90000
B15: Cuota | C15: =+C14/C22 -> 4904.278284
B19: TEM | C19: =+C20/(365/30) -> 0.05038439712
B20: TNA Límite del mes | C20: =+((1+C11)^(30/365)-1)*(365/30) -> 0.613010165
B21: ani | C21: =+((1+C19)^C9-1)/(C19*(1+C19)^C9) -> 18.80795318
B22: ani difereido | C22: =+C21*1/(1+C19)^C24 -> 18.35132404
B24: diferimiento | C24: =+(C7-30)/30 -> 0.5
B26: TNA máxima a incluir en el préstamo | C26: =+C27*365/30 -> 0.6754276504
B27: TEM máxima a incluir en el préstamo | C27: 0.0555146014
B29: ani objetivo | C29: =+C8/C15 -> 20.39036005
B30: ani resultante | C30: =+(((1+C27)^C9-1)/(C27*(1+C27)^C9)) -> 17.30901079
B31: diferencia | C31: =+C29-C30 -> 3.081349261
C40: CFT | D40: =+XIRR(C45:C105,B45:B105) -> 0.8353295445
C41: Diferencia | D41: =+D40-C11 -> 0.01672954454
H43: Fecha inicial
B44: Fechas | C44: Flujo | G44: =+D41 -> 0.01672954454 | H44: 2019-01-01 | I44: =+EDATE(H44,1) -> 2019-02-01 | J44: =+EDATE(I44,1) -> 2019-03-01 | K44: 2019-04-01 | L44: 2019-05-01 | M44: 2019-06-01 | N44: 2019-07-01 | O44: =+EDATE(N44,1) -> 2019-08-01 | P44: 2019-09-01 | Q44: =+EDATE(P44,1) -> 2019-10-01 | R44: 2019-11-01 | S44: 2019-12-01
A45: 0 | B45: 2019-01-01 | C45: =+C14 -> 90000 | F45: CFT límite | G45: 0.9 | H45: 0.02037657499 | I45: 0.02196384668 | J45: 0.01573792696 | K45: 0.01704186201 | L45: 0.01580704451 | M45: 0.01711486578 | N45: 0.01588407755 | O45: 0.01719628572 | P45: 0.01858655214 | Q45: 0.01743315458 | R45: 0.01883751154 | S45: 0.01769737005
A46: 1 | B46: =+EDATE(B45,C7/30) -> 2019-02-01 | C46: =+C15*-1 -> -4904.278284 | G46: 0.85 | H46: 0.01808940172 | I46: 0.01952186823 | J46: 0.01387740374 | K46: 0.01506305933 | L46: 0.01394718885 | M46: 0.01513661146 | N46: 0.01402460337 | O46: 0.01521824598 | P46: 0.01647986174 | Q46: 0.01543542147 | R46: 0.01670936346 | S46: 0.01567653418
A47: 2 | B47: =+EDATE(B46,1) -> 2019-03-01 | C47: =+C46 -> -4904.278284 | E47: =+AVERAGE(H47:S47) -> 0.01455260808 | G47: 0.8186 | H47: 0.01672954454 | I47: 0.01806940928 | J47: 0.01277463331 | K47: 0.01388893023 | L47: 0.01284439459 | M47: 0.01396238699 | N47: 0.01292157068 | O47: 0.01404366388 | P47: 0.0152277936 | Q47: 0.01424879923 | R47: 0.01544427767 | S47: 0.01447589293
A48: 3 | B48: 2019-04-01 | C48: =+C47 -> -4904.278284 | G48: 0.75 | H48: 0.01396235228 | I48: 0.01511186361 | J48: 0.0105399251 | K48: 0.01150628328 | L48: 0.01060861349 | M48: 0.01157838106 | N48: 0.01068409681 | O48: 0.01165760756 | P48: 0.01268137693 | Q48: 0.01183737516 | R48: 0.01287044287 | S48: 0.01203507185
A49: 4 | B49: 2019-05-01 | C49: -4904.278284 | G49: 0.7 | H49: 0.0121196866 | I49: 0.01314073801 | J49: 0.009060442448 | K49: 0.009925711155 | L49: 0.00912746191 | M49: 0.009995877743 | N49: 0.009200751781 | O49: 0.01007264853 | P49: 0.01098715067 | Q49: 0.01023477316 | R49: 0.0111571908 | S49: 0.01041218042
A50: 5 | B50: 2019-06-01 | C50: -4904.278284 | G50: 0.65 | H50: 0.01042192578 | I50: 0.01132289767 | J50: 0.007705003023 | K50: 0.008474820852 | L50: 0.007769685984 | M50: 0.008542388678 | N50: 0.007840055227 | O50: 0.008615916967 | P50: 0.009427505732 | Q50: 0.008761113882 | R50: 0.009579390287 | S50: 0.0089191854
A51: 6 | B51: 2019-07-01 | C51: -4904.278284 | G51: 0.6 | H51: 0.008866912127 | I51: 0.009656041861 | J51: 0.006471699476 | K51: 0.007151645422 | L51: 0.006533414125 | M51: 0.007215946913 | N51: 0.006600219011 | O51: 0.007285565138 | P51: 0.00800049901 | Q51: 0.007414597273 | R51: 0.008135098219 | S51: 0.007554322481
A52: 7 | B52: 2019-08-01 | C52: -4904.278284 | G52: 0.55 | H52: 0.007452124357 | I52: 0.008137446642 | J52: 0.005358284712 | K52: 0.005953854322 | L52: 0.005416470766 | M52: 0.006014317274 | N52: 0.005479115248 | O52: 0.006079429388 | P52: 0.00670388341 | Q52: 0.006193047762 | R52: 0.00682207942 | S52: 0.006315416098
A53: 8 | B53: 2019-09-01 | C53: -4904.278284 | G53: 0.5 | H53: 0.006174701452 | I53: 0.006764000654 | J53: 0.004362171888 | K53: 0.004878801107 | L53: 0.004416316748 | M53: 0.00493491292 | N53: 0.004474276304 | O53: 0.004994982481 | P53: 0.005535048246 | Q53: 0.005093985796 | R53: 0.005637735128 | S53: 0.005200022459
A54: 9 | B54: 2019-10-01 | C54: -4904.278284 | G54: 0.45 | H54: 0.005031341314 | I54: 0.005532163382 | J54: 0.003480428457 | K54: 0.00392344594 | L54: 0.003530067205 | M54: 0.003974741697 | N54: 0.003582924604 | O54: 0.004029363394 | P54: 0.004491013288 | Q54: 0.004114550352 | R54: 0.004579097033 | S54: 0.004205268621
A55: 10 | B55: 2019-11-01 | C55: -4904.278284 | G55: 0.4 | H55: 0.004018300772 | I55: 0.004437977076 | J55: 0.002709716558 | K55: 0.003084355593 | L55: 0.002754479647 | M55: 0.003130465746 | N55: 0.002801853418 | O55: 0.00317928195 | P55: 0.003568357229 | Q55: 0.003251487017 | R55: 0.00364279151 | S55: 0.003327912092
A56: 11 | B56: 2019-12-01 | C56: -4904.278284 | G56: 0.35 | H56: 0.00313141942 | I56: 0.00347699523 | J56: 0.002046304941 | K56: 0.002357679605 | L56: 0.002085870504 | M56: 0.002398306131 | N56: 0.002127474546 | O56: 0.002441054583 | P56: 0.002763277292 | Q56: 0.002501112223 | R56: 0.002824991941 | S56: 0.002564305067
A57: 12 | B57: 2020-01-01 | C57: -4904.278284 | G57: 0.3 | H57: 0.002366012335 | I57: 0.002644270658 | J57: 0.001486033201 | K57: 0.001739138365 | L57: 0.001520138979 | M57: 0.001774054766 | N57: 0.001555782557 | O57: 0.001810544729 | P57: 0.002071481943 | Q57: 0.001859337091 | R57: 0.002121454477 | S57: 0.001910346746
A58: 13 | B58: 2020-02-01 | C58: -4904.278284 | G58: 0.25 | H58: 0.001716941595 | I58: 0.001934367418 | J58: 0.001024287939 | K58: 0.001223987341 | L58: 0.001052755117 | M58: 0.001253026724 | N58: 0.001082295179 | O58: 0.001283186674 | P58: 0.001488226652 | Q58: 0.001321583986 | R58: 0.001527422667 | S58: 0.001361459494
A59: 14 | B59: 2020-03-01 | C59: -4904.278284 | G59: 0.2 | H59: 0.001178508997 | I59: 0.001341313124 | J59: 0.0006560027599 | K59: 0.0008070170879 | L59: 0.0006787121296 | M59: 0.0008301079273 | N59: 0.0007021248341 | O59: 0.0008539140224 | P59: 0.001008290052 | Q59: 0.0008828103542 | R59: 0.001037675142 | S59: 0.0009126126766
A60: 15 | B60: 2020-04-01 | C60: -4904.278284 | G60: 0.15 | H60: 0.0007445514202 | I60: 0.0008586227894 | J60: 0.0003756463528 | K60: 0.0004825174809 | L60: 0.000392562151 | M60: 0.0004996597767 | N60: 0.0004098832607 | O60: 0.0005172073841 | P60: 0.000625950098 | Q60: 0.0005374968052 | R60: 0.0006465256214 | S60: 0.0005582869053
A61: 16 | B61: 2020-05-01 | C61: -4904.278284 | G61: 0.1 | H61: 0.0004083573818 | I61: 0.0004792630672 | J61: 0.0001772344112 | K61: 0.0002443492413 | L61: 0.0001883924007 | M61: 0.0002556025982 | N61: 0.0001997172832 | O61: 0.00026704669 | P61: 0.000334995985 | Q61: 0.0002796590328 | R61: 0.0003477275372 | S61: 0.0002924740314
A62: 17 | B62: 2020-06-01 | C62: -4904.278284
A63: 18 | B63: 2020-07-01 | C63: -4904.278284
A64: 19 | B64: 2020-08-01 | C64: -4904.278284
A65: 20 | B65: 2020-09-01 | C65: -4904.278284
A66: 21 | B66: 2020-10-01 | C66: -4904.278284
A67: 22 | B67: 2020-11-01 | C67: -4904.278284
A68: 23 | B68: 2020-12-01 | C68: -4904.278284
A69: 24 | B69: 2021-01-01 | C69: -4904.278284
A70: 25 | B70: 2021-02-01 | C70: -4904.278284
A71: 26 | B71: 2021-03-01 | C71: -4904.278284
A72: 27 | B72: 2021-04-01 | C72: -4904.278284
A73: 28 | B73: 2021-05-01 | C73: -4904.278284
A74: 29 | B74: 2021-06-01 | C74: -4904.278284
A75: 30 | B75: 2021-07-01 | C75: -4904.278284
A76: 31 | B76: 2021-08-01 | C76: -4904.278284
A77: 32 | B77: 2021-09-01 | C77: -4904.278284
A78: 33 | B78: 2021-10-01 | C78: -4904.278284
A79: 34 | B79: 2021-11-01 | C79: -4904.278284
A80: 35 | B80: 2021-12-01 | C80: -4904.278284
A81: 36 | B81: 2022-01-01 | C81: -4904.278284
A82: 37 | B82: 2022-02-01 | C82: -4904.278284
A83: 38 | B83: 2022-03-01 | C83: -4904.278284
A84: 39 | B84: 2022-04-01 | C84: -4904.278284
A85: 40 | B85: 2022-05-01 | C85: -4904.278284
A86: 41 | B86: 2022-06-01 | C86: -4904.278284
A87: 42 | B87: 2022-07-01 | C87: -4904.278284
A88: 43 | B88: 2022-08-01 | C88: -4904.278284
A89: 44 | B89: 2022-09-01 | C89: -4904.278284
A90: 45 | B90: 2022-10-01 | C90: -4904.278284
A91: 46 | B91: 2022-11-01 | C91: -4904.278284
A92: 47 | B92: 2022-12-01 | C92: -4904.278284
A93: 48 | B93: 2023-01-01 | C93: -4904.278284
A94: 49 | B94: 2023-02-01 | C94: -4904.278284
A95: 50 | B95: 2023-03-01 | C95: -4904.278284
A96: 51 | B96: 2023-04-01 | C96: -4904.278284
A97: 52 | B97: 2023-05-01 | C97: -4904.278284
A98: 53 | B98: 2023-06-01 | C98: -4904.278284
A99: 54 | B99: 2023-07-01 | C99: -4904.278284
A100: 55 | B100: 2023-08-01 | C100: -4904.278284
A101: 56 | B101: 2023-09-01 | C101: -4904.278284
A102: 57 | B102: 2023-10-01 | C102: -4904.278284
A103: 58 | B103: 2023-11-01 | C103: -4904.278284
A104: 59 | B104: 2023-12-01 | C104: -4904.278284
A105: 60 | B105: 2024-01-01 | C105: -4904.278284
